bitfinex-derivatives/quotes_SOLF0:USTF0_20250310
["timestamp","ask_amount","ask_price","bid_price","bid_amount"]
[1741596642969,0.05798343,126.61,126.59,20.28585866]
[1741596643175,0.05798343,126.61,126.59,28.18405866]
[1741596643472,0.05798343,126.61,126.59,20.28585866]
[1741596643669,0.05798343,126.61,126.59,28.18405866]
[1741596644065,0.05798343,126.61,126.59,20.28585866]
[1741596644259,0.05798343,126.61,126.6,12.92851612]
[1741596647672,0.05798343,126.61,126.6,20.82641612]
[1741596647867,0.05798343,126.61,126.6,23.70981612]
[1741596648175,0.05798343,126.61,126.59,0.05633968]
[1741596648375,0.05798343,126.61,126.6,12.92851612]
[1741596648574,7.95528343,126.61,126.6,12.92851612]
[1741596648873,0.05798343,126.61,126.59,0.05633968]
[1741596649277,0.05798343,126.61,126.6,12.92851612]
[1741596650175,7.95528343,126.61,126.6,12.92851612]
[1741596651170,0.05798343,126.61,126.6,12.92851612]
[1741596651971,0.05798343,126.61,126.6,20.82641612]
[1741596652363,173.74,126.65,126.6,12.92851612]
[1741596652560,173.74,126.65,126.63,12.92851612]
[1741596653174,181.6351,126.65,126.63,12.92851612]
[1741596653565,181.68756336,126.65,126.63,12.98673169]
[1741596656072,7.8954,126.64,126.63,0.05821557]
[1741596657074,173.79246336,126.65,126.63,12.98673169]
[1741596657275,181.68746336,126.65,126.63,12.98673169]
[1741596657978,173.79246336,126.65,126.63,12.98673169]
[1741596658180,173.79246336,126.65,126.63,20.88273169]
[1741596658678,181.68726336,126.65,126.63,12.98673169]
[1741596658977,173.79246336,126.65,126.63,12.98673169]
[1741596659971,7.8954,126.64,126.63,0.05821557]
[1741596661577,173.79246336,126.65,126.63,0.05821557]
[1741596661778,173.79246336,126.65,126.64,12.92851612]
[1741596662174,181.68726336,126.65,126.64,12.92851612]
[1741596663184,181.68726336,126.65,126.63,0.05821557]
[1741596663185,7.8954,126.64,126.63,0.05821557]
[1741596664077,186.72097948,126.65,126.58,12.92851612]
[1741596664271,7.8975,126.61,126.58,7.8988]
[1741596664777,173.74,126.65,126.57,20.20936658]
[1741596664985,7.8969,126.62,126.59,7.8985]
[1741596665183,20.20936658,126.64,126.56,2.8834]
[1741596665484,10.823,126.61,126.6,0.05013732]
[1741596666886,0.05669479,126.62,126.6,0.05013732]
[1741596667083,0.05669479,126.62,126.6,20.2595039]
[1741596667483,0.05669479,126.62,126.61,7.8973]
[1741596670482,173.74,126.65,126.64,7.8954]
[1741596670686,173.74,126.65,126.64,28.10476658]
[1741596670986,173.74,126.65,126.64,20.20936658]
[1741596672895,173.74,126.65,126.63,0.06026482]
[1741596673594,7.8954,126.64,126.63,0.06026482]
[1741596673789,173.74,126.65,126.63,0.06026482]
[1741596674797,173.74,126.65,126.64,20.20936658]
[1741596675299,0.05321102,126.66,126.64,20.20936658]
[1741596675688,0.05321102,126.66,126.65,7.8948]
[1741596676793,42.85261829,126.75,126.65,216.14936658]
[1741596676994,10.71315457,126.74,126.72,20.20936658]
[1741596677599,10.71315457,126.74,126.73,7.8898]
[1741596678803,10.71315457,126.74,126.72,20.2666931]
[1741596681003,0.05790016,126.75,126.72,20.2666931]
[1741596684107,0.05790016,126.75,126.74,20.20936658]
[1741596684301,0.05790016,126.75,126.72,20.2666931]
[1741596687709,7.94690016,126.75,126.72,20.2666931]
[1741596688602,0.05790016,126.75,126.72,20.2666931]
[1741596689004,193.76936658,126.84,126.74,20.20936658]
[1741596689209,7.8865,126.79,126.76,20.20936658]
[1741596689712,8.5047,126.83,126.76,28.09726658]
[1741596689901,8.5047,126.83,126.76,20.20936658]
[1741596690104,8.5047,126.83,126.74,20.20936658]
[1741596690313,7.8861,126.79,126.78,0.05579875]
[1741596690807,8.5047,126.83,126.74,20.20936658]
[1741596691008,7.8885,126.75,126.74,20.20936658]
[1741596692116,0.05422141,126.76,126.73,0.05408]
[1741596692413,20.20936658,126.78,126.7,20.20936658]
[1741596692605,7.8892,126.74,126.73,0.05092666]
[1741596693801,0.05422141,126.76,126.73,0.05092666]
[1741596694001,0.05422141,126.76,126.73,7.94072666]
[1741596694208,0.05422141,126.76,126.74,20.20936658]
[1741596695909,7.94222141,126.76,126.74,20.20936658]
[1741596697015,0.05422141,126.76,126.74,20.20936658]
[1741596699022,7.94222141,126.76,126.74,20.20936658]
[1741596699419,7.8885,126.75,126.74,20.20936658]
[1741596699720,0.05422141,126.76,126.73,0.05092666]
[1741596700113,7.8892,126.74,126.73,0.05092666]
[1741596700309,0.05422141,126.76,126.73,0.05092666]
[1741596702508,0.05422141,126.76,126.74,28.09826658]
[1741596702718,0.05422141,126.76,126.74,20.20936658]
[1741596703112,0.05422141,126.76,126.75,7.8885]
[1741596705821,0.05422141,126.76,126.74,22.89616658]
[1741596706009,0.05422141,126.76,126.74,2.6868]
[1741596706210,0.05422141,126.76,126.74,7.8891]
[1741596706423,7.94232141,126.76,126.73,192.05092666]
[1741596707020,7.94232141,126.76,126.73,0.05092666]
[1741596707021,0.05422141,126.76,126.73,0.05092666]
[1741596707816,0.05422141,126.76,126.73,7.94032666]
[1741596708016,0.05422141,126.76,126.73,0.05092666]
[1741596708523,0.05422141,126.76,126.74,20.20936658]
[1741596708920,0.05422141,126.76,126.73,0.05092666]
[1741596709122,7.94242141,126.76,126.73,7.94072666]
[1741596710228,7.8886,126.75,126.73,0.05092666]
[1741596710919,7.8892,126.74,126.73,0.05092666]
[1741596714026,5.6956,126.75,126.73,0.05092666]
[1741596714334,13.5844,126.75,126.73,0.05092666]
[1741596715529,0.05422141,126.76,126.73,0.05092666]
[1741596716124,7.94232141,126.76,126.73,0.05092666]
[1741596716323,0.05422141,126.76,126.73,0.05092666]
[1741596716826,7.8889,126.75,126.73,0.05092666]
[1741596717426,0.05422141,126.76,126.73,0.05092666]
[1741596717632,0.05422141,126.76,126.73,20.26029324]
[1741596717931,0.05422141,126.76,126.73,28.14969324]
[1741596718126,7.94262141,126.76,126.73,28.14969324]
[1741596718327,0.05422141,126.76,126.73,28.14969324]
[1741596718733,0.05422141,126.76,126.73,7.94032666]
[1741596719430,7.94252141,126.76,126.73,7.94032666]
[1741596719826,7.94252141,126.76,126.74,7.8891]
[1741596720023,0.05422141,126.76,126.74,7.8891]
[1741596720227,0.05422141,126.76,126.73,20.26029324]
[1741596720429,0.05422141,126.76,126.74,7.8887]
[1741596720629,0.05422141,126.76,126.73,20.26029324]
[1741596721537,0.05422141,126.76,126.74,7.8888]
[1741596722130,0.05422141,126.76,126.73,28.14979324]
[1741596722131,7.94222141,126.76,126.73,28.14979324]
[1741596722438,0.05422141,126.76,126.73,0.05092666]
[1741596724335,0.05422141,126.76,126.69,2.786]
[1741596724639,7.8904,126.73,126.7,7.8913]
[1741596725441,7.94175546,126.73,126.7,7.95070282]
[1741596725943,7.8908,126.72,126.7,0.05940282]
[1741596726638,7.94135546,126.73,126.7,7.95060282]
[1741596726840,0.05135546,126.73,126.7,0.05940282]
[1741596727345,0.05135546,126.73,126.71,20.20936658]
[1741596727528,0.05135546,126.73,126.72,7.8904]
[1741596732144,0.05135546,126.73,126.71,30.76236658]
[1741596732444,0.05135546,126.73,126.71,22.87166658]
[1741596732649,0.05135546,126.73,126.72,7.8904]
[1741596735253,10.6494,126.79,126.76,7.8879]
[1741596735654,10.6494,126.79,126.74,20.20936658]
[1741596735840,10.6494,126.79,126.75,7.8882]
[1741596736045,10.6494,126.79,126.74,20.20936658]
[1741596736455,0.05379261,126.78,126.76,7.8879]
[1741596736655,0.05379261,126.78,126.75,0.05651672]
[1741596737047,0.05379261,126.78,126.77,7.8873]
[1741596738446,48.49661829,126.84,126.77,3.94]
[1741596738755,5.644,126.84,126.78,20.20936658]
[1741596739147,7.8852,126.81,126.76,22.97066658]
[1741596739347,2.7095,126.83,126.76,22.97066658]
[1741596739542,20.20936658,126.82,126.79,4.98e-05]
[1741596739748,7.8879,126.77,126.72,20.20936658]
[1741596740650,5.6728,126.79,126.72,28.09956658]
[1741596740849,0.05485566,126.76,126.73,0.05879287]
[1741596741251,7.94315566,126.76,126.73,0.05879287]
[1741596741450,0.05485566,126.76,126.73,0.05879287]
[1741596742349,7.8891,126.75,126.73,0.05879287]
[1741596742760,20.26422224,126.76,126.68,20.20936658]
[1741596742948,20.26422224,126.76,126.67,131.93913419]
[1741596742949,4.8189709,126.75,126.67,131.93913419]
[1741596743255,20.20936658,126.7,126.67,131.93913419]
[1741596743457,2.653,126.69,126.67,123.16373419]
[1741596743654,7.8929,126.68,126.67,123.16373419]
[1741596743845,7.8929,126.68,126.67,123.22382696]
[1741596744352,2.71227021,126.69,126.67,0.06009277]
[1741596744353,0.05927021,126.69,126.67,0.06009277]
[1741596744859,0.05927021,126.69,126.68,20.20936658]
[1741596745053,0.05927021,126.69,126.68,28.10226658]
[1741596745254,0.05927021,126.69,126.67,0.06009277]
[1741596746358,7.8929,126.68,126.67,0.06009277]
[1741596747159,0.05927021,126.69,126.67,0.06009277]
[1741596747861,7.8929,126.68,126.67,0.06009277]
[1741596748056,0.05927021,126.69,126.67,0.06009277]
[1741596749855,173.5,126.7,126.68,40.19508599]
[1741596750152,2.6416,126.77,126.68,32.30218599]
[1741596750351,7.889,126.75,126.68,35.17268599]
[1741596750549,7.889,126.75,126.71,7.891]
[1741596750755,7.889,126.75,126.68,35.17268599]
[1741596751062,7.8893,126.74,126.7,7.8915]
[1741596751262,0.05427668,126.73,126.7,7.94751417]
[1741596751557,7.94407668,126.73,126.7,7.94751417]
[1741596751951,0.05427668,126.73,126.7,7.94751417]
[1741596752152,0.05427668,126.73,126.71,7.8909]
[1741596752352,0.05427668,126.73,126.7,0.05601417]
[1741596752658,0.05427668,126.73,126.72,7.8904]
[1741596752860,0.05427668,126.73,126.72,40.19258599]
[1741596753159,181.4471,126.78,126.74,7.8889]
[1741596754155,173.56,126.78,126.72,32.30218599]
[1741596754352,173.56,126.78,126.75,0.05451388]
[1741596754657,7.889,126.75,126.71,7.8906]
[1741596755559,7.8881,126.76,126.72,7.8899]
[1741596755759,0.05405575,126.74,126.72,0.05038433]
[1741596756160,0.05405575,126.74,126.72,32.35257032]
[1741596756646,0.05405575,126.74,126.72,40.24267032]
[1741596757257,0.05405575,126.74,126.72,32.35257032]
[1741596757457,0.05405575,126.74,126.73,7.8898]
[1741596757659,0.05405575,126.74,126.72,32.35257032]
[1741596757958,0.05405575,126.74,126.72,40.24267032]
[1741596759654,7.8898,126.73,126.72,0.05038433]
[1741596759854,0.05405575,126.74,126.72,0.05038433]
[1741596760255,0.05405575,126.74,126.73,7.8898]
[1741596760457,2.6883,126.79,126.73,32.30218599]
[1741596760756,7.8864,126.79,126.75,7.888]
[1741596760950,5.6226,126.81,126.68,2.8705]
[1741596761157,32.30218599,126.79,126.69,1.43672703]
[1741596761359,7.8896,126.74,126.7,7.8914]
[1741596761557,5.6226,126.81,126.73,0.06036623]
[1741596761762,4.8035506,126.8,126.7,32.30218599]
[1741596761949,4.80258101,126.79,126.72,7.8901]
[1741596762155,4.80258101,126.78,126.74,0.05004613]
[1741596762350,7.8902,126.73,126.69,7.892]
[1741596762760,32.30218599,126.79,126.69,7.892]
[1741596762963,7.8895,126.74,126.7,7.8915]
[1741596763365,32.30218599,126.79,126.7,7.8915]
[1741596763551,7.94615024,126.73,126.71,0.05404828]
[1741596763756,7.8902,126.73,126.69,7.8919]
[1741596764060,7.8904,126.72,126.71,0.0537859]
[1741596764257,0.05464994,126.73,126.71,0.0537859]
[1741596764663,7.94484994,126.73,126.71,0.0537859]
[1741596764962,0.05464994,126.73,126.71,0.0537859]
[1741596765159,7.94474994,126.73,126.71,0.0537859]
[1741596765658,0.05464994,126.73,126.71,0.0537859]
[1741596766362,7.94444994,126.73,126.71,0.0537859]
[1741596766866,0.05464994,126.73,126.71,0.0537859]
[1741596768959,7.94494994,126.73,126.71,0.0537859]
[1741596769155,0.05464994,126.73,126.71,0.0537859]
[1741596769865,7.8904,126.72,126.71,0.0537859]
[1741596770165,7.893,126.68,126.66,32.30218599]
[1741596770365,2.8469,126.72,126.63,32.30218599]
[1741596770561,2.7419,126.71,126.63,32.30218599]
[1741596771264,7.8937,126.67,126.66,0.05742865]
[1741596772972,0.05001184,126.68,126.66,0.05742865]
[1741596773270,7.94301184,126.68,126.66,0.05742865]
[1741596773663,0.05001184,126.68,126.66,0.05742865]
[1741596774459,0.05001184,126.68,126.66,7.95132865]
[1741596774664,0.05001184,126.68,126.66,0.05742865]
[1741596775172,0.05001184,126.68,126.54,34.29088844]
[1741596775467,7.8944,126.66,126.61,7.8969]
[1741596775773,7.8944,126.66,126.59,32.30218599]
[1741596776272,0.056046,126.64,126.59,32.30218599]
[1741596776566,0.056046,126.64,126.62,7.8966]
[1741596776771,0.056046,126.64,126.61,0.06039227]
[1741596777866,0.056046,126.64,126.61,7.95719227]
[1741596778171,0.056046,126.64,126.61,0.06039227]
[1741596778374,0.056046,126.64,126.61,20.25439067]
[1741596778969,0.056046,126.64,126.62,7.8965]
[1741596779371,0.056046,126.64,126.61,20.25439067]
[1741596779667,0.056046,126.64,126.62,7.8963]
[1741596779874,0.056046,126.64,126.61,20.25439067]
[1741596780374,7.951746,126.64,126.61,20.25439067]
[1741596780674,0.056046,126.64,126.61,20.25439067]
[1741596780873,0.056046,126.64,126.61,28.15119067]
[1741596781369,0.056046,126.64,126.61,0.06039227]
[1741596781570,0.056046,126.64,126.55,2.6486]
[1741596781875,2.7282,126.64,126.55,24.21697884]
[1741596782373,7.8982,126.6,126.57,7.8997]
[1741596782574,2.7282,126.64,126.55,36.36042711]
[1741596782767,2.7282,126.64,126.57,32.39613349]
[1741596782768,0.05049961,126.6,126.57,32.39613349]
[1741596782968,0.05049961,126.6,126.59,7.8985]
[1741596783171,15.7836,126.7,126.59,7.8985]
[1741596783172,189.318,126.75,126.59,32.33744667]
[1741596783374,7.8934,126.68,126.63,7.896]
[1741596783668,8.0674,126.71,126.61,32.33744667]
[1741596783871,8.0674,126.71,126.62,7.8963]
[1741596784071,8.0674,126.71,126.61,32.33744667]
[1741596784270,0.05251014,126.68,126.65,0.05299272]
[1741596784472,7.8939,126.67,126.65,0.05299272]
[1741596785274,0.05251014,126.68,126.65,0.05299272]
[1741596785972,7.94541014,126.68,126.65,0.05299272]
[1741596786372,0.05251014,126.68,126.65,0.05299272]
[1741596786667,7.894,126.67,126.65,0.05299272]
[1741596787275,0.05251014,126.68,126.65,0.05299272]
[1741596789176,7.8942,126.66,126.65,0.05299272]
[1741596791674,0.05251014,126.68,126.65,0.05299272]
[1741596792276,0.05251014,126.68,126.67,7.8935]
[1741596792477,0.05251014,126.68,126.65,0.05299272]
[1741596793679,0.05251014,126.68,126.65,32.39043939]
[1741596793882,0.05251014,126.68,126.67,7.8935]
[1741596794175,0.05251014,126.68,126.65,2.85519272]
[1741596795077,0.05251014,126.68,126.66,7.8937]
[1741596795878,0.05251014,126.68,126.65,2.85519272]
[1741596796480,0.05251014,126.68,126.66,7.8938]
[1741596797380,7.94541014,126.68,126.65,10.74959272]
[1741596797774,7.94541014,126.68,126.65,2.85519272]
[1741596797775,0.05251014,126.68,126.65,2.85519272]
[1741596797973,0.05251014,126.68,126.66,7.8938]
[1741596798173,0.05251014,126.68,126.65,2.85519272]
[1741596798674,0.05251014,126.68,126.66,7.894]
[1741596798879,0.05251014,126.68,126.65,0.05299272]
[1741596800282,7.8942,126.66,126.65,0.05299272]
[1741596802285,0.05251014,126.68,126.65,0.05299272]
[1741596802474,7.8939,126.67,126.65,0.05299272]
[1741596803076,0.05251014,126.68,126.65,0.05299272]
[1741596803474,0.05251014,126.68,126.59,20.1950345]
[1741596803683,24.98709878,126.67,126.57,24.23929786]
[1741596803878,20.1950345,126.67,126.57,24.23929786]
[1741596804080,20.1950345,126.67,126.6,7.8976]
[1741596804386,20.1950345,126.67,126.57,22.8651345]
[1741596804585,7.8958,126.64,126.61,7.897]
[1741596804788,0.06071477,126.63,126.61,7.94981847]
[1741596806189,7.8966,126.62,126.61,0.05281847]
[1741596808181,7.95701477,126.63,126.61,0.05281847]
[1741596809282,7.8966,126.62,126.61,0.05281847]
[1741596809477,0.06071477,126.63,126.57,10.5695]
[1741596809683,20.25574927,126.63,126.57,10.5695]
[1741596809882,0.06071477,126.63,126.57,10.5695]
[1741596810191,0.06071477,126.63,126.57,2.6701]
[1741596810488,7.897,126.62,126.59,7.8981]
[1741596810690,7.897,126.62,126.59,7.95305251]
[1741596811591,7.95691477,126.63,126.59,0.05495251]
[1741596812094,7.95671477,126.63,126.59,0.05495251]
[1741596812591,7.95671477,126.63,126.6,7.8974]
[1741596813087,7.8967,126.62,126.59,7.95315251]
[1741596813488,0.06071477,126.63,126.59,20.24998701]
[1741596813991,0.06071477,126.63,126.59,0.05495251]
[1741596814195,7.8977,126.61,126.59,0.05495251]
[1741596814387,0.06071477,126.63,126.59,0.05495251]
[1741596814986,7.8978,126.61,126.59,0.05495251]
[1741596816089,7.897,126.62,126.59,0.05495251]
[1741596816291,0.06071477,126.63,126.59,0.05495251]
[1741596817095,7.8976,126.61,126.59,0.05495251]
[1741596817497,7.8976,126.61,126.59,7.95345251]
[1741596817994,20.25574927,126.63,126.59,0.05495251]
[1741596818496,7.8979,126.6,126.59,0.05495251]
[1741596829799,0.06071477,126.63,126.53,20.1950345]
[1741596830002,7.9001,126.57,126.53,20.1950345]
[1741596830195,7.9001,126.57,126.54,7.9013]
[1741596830708,2.9671,126.61,126.52,2.7325]
[1741596831005,7.9019,126.54,126.51,28.0982345]
[1741596831209,20.1950345,126.59,126.55,0.0581497]
[1741596831403,0.05508428,126.54,126.49,20.1950345]
[1741596831614,7.9026,126.53,126.5,7.9039]
[1741596831907,20.1950345,126.59,126.49,20.1950345]
[1741596832503,7.95669043,126.55,126.53,0.05264119]
[1741596832810,0.05529043,126.55,126.53,0.05264119]
[1741596833816,0.05529043,126.55,126.48,7.9051]
[1741596834011,2.9711,126.55,126.48,7.9051]
[1741596834303,25.8610345,126.55,126.47,28.1007345]
[1741596834702,25.8610345,126.55,126.47,20.1950345]
[1741596834906,7.96179058,126.52,126.5,0.05826458]
[1741596835307,0.05859058,126.52,126.5,0.05826458]
[1741596835507,7.9035,126.51,126.46,2.7528]
[1741596835710,0.05859058,126.52,126.46,2.7528]
[1741596835906,0.05859058,126.52,126.47,20.1950345]
[1741596836104,0.05859058,126.52,126.49,7.9043]
[1741596836709,0.05859058,126.52,126.49,7.95508841]
[1741596837106,0.05859058,126.52,126.49,0.05078841]
[1741596838108,0.05859058,126.52,126.49,20.24582291]
[1741596839207,0.05859058,126.52,126.51,20.1950345]
[1741596839712,0.05859058,126.52,126.51,7.9035]
[1741596840618,173.74,126.56,126.49,20.24582291]
[1741596840911,7.9041,126.5,126.49,0.05078841]
[1741596842811,0.05123852,126.51,126.49,0.05078841]
[1741596843713,7.9041,126.5,126.49,0.05078841]
[1741596846407,3.96,126.5,126.36,192.0]
[1741596846613,20.1950345,126.48,126.37,21.63535858]
[1741596846814,20.1950345,126.48,126.37,20.1950345]
[1741596847019,7.9095,126.42,126.37,20.1950345]
[1741596847221,173.84,126.45,126.39,20.1950345]
[1741596847720,0.05954799,126.43,126.41,20.24715499]
[1741596848221,173.84,126.45,126.42,2.7614]
[1741596848413,173.84,126.45,126.43,20.1950345]
[1741596849414,181.80710201,126.45,126.43,20.1950345]
[1741596849613,181.80710201,126.45,126.42,2.7614]
[1741596849816,173.89980201,126.45,126.42,2.7614]
[1741596850021,173.89980201,126.45,126.43,20.1950345]
[1741596850417,173.89980201,126.45,126.42,2.7614]
[1741596851420,7.9085,126.43,126.42,2.7614]
[1741596851617,173.89980201,126.45,126.41,0.05212049]
[1741596851919,7.9091,126.42,126.41,0.05212049]
[1741596854122,20.1950345,126.44,126.35,28.1082345]
[1741596854318,173.84,126.45,126.37,20.1950345]
[1741596854622,173.84,126.45,126.39,20.1950345]
[1741596854821,173.84,126.45,126.38,2.9684]
[1741596855126,194.0350345,126.45,126.38,2.9684]
[1741596855425,0.05841041,126.43,126.4,0.05827422]
[1741596856123,20.25344491,126.43,126.4,7.422e-05]
[1741596856630,5.7896,126.42,126.4,7.422e-05]
[1741596857128,7.9098,126.41,126.4,7.422e-05]
[1741596857518,28.1048345,126.41,126.4,7.422e-05]
[1741596858216,7.9098,126.41,126.4,7.422e-05]
[1741596858820,2.9805,126.42,126.4,7.422e-05]
[1741596859025,0.05841041,126.43,126.4,7.422e-05]
[1741596859231,7.9095,126.42,126.4,7.422e-05]
[1741596859418,0.05841041,126.43,126.4,7.422e-05]
[1741596861327,7.9098,126.41,126.4,7.422e-05]
[1741596862121,28.1048345,126.41,126.4,7.422e-05]
[1741596862328,24.1550345,126.41,126.33,2.9684]
[1741596862524,20.1950345,126.39,126.31,20.1950345]
[1741596862828,7.9143,126.34,126.31,20.1950345]
[1741596863028,20.1950345,126.39,126.31,20.1950345]
[1741596863426,0.05242505,126.36,126.34,0.05695098]
[1741596864021,7.9135,126.35,126.34,0.05695098]
[1741596865227,7.9135,126.35,126.34,5.098e-05]
[1741596868334,28.1085345,126.35,126.34,5.098e-05]
[1741596868532,10.6679,126.35,126.34,5.098e-05]
[1741596872137,7.9135,126.35,126.34,5.098e-05]
[1741596876136,10.8905,126.35,126.34,5.098e-05]
[1741596876836,31.0855345,126.35,126.34,5.098e-05]
[1741596878136,7.9169,126.3,126.27,7.9183]
[1741596878632,20.1950345,126.33,126.27,7.9183]
[1741596878846,7.9163,126.31,126.27,7.9183]
[1741596879041,176.8312,126.34,126.25,2.7678]
[1741596879244,7.9196,126.26,126.21,5.7134]
[1741596879443,7.9196,126.26,126.21,8.5536]
[1741596879639,0.05959119,126.25,126.22,0.05367724]
[1741596879941,0.05959119,126.25,126.23,7.921]
[1741596880342,0.05959119,126.25,126.22,0.05367724]
[1741596880547,0.05959119,126.25,126.22,20.24871174]
[1741596880749,20.1950345,126.33,126.25,7.9193]
[1741596880936,20.1950345,126.33,126.24,20.1950345]
[1741596881142,7.9168,126.3,126.24,20.1950345]
[1741596881342,7.9168,126.3,126.25,7.9196]
[1741596881543,20.1950345,126.33,126.24,20.1950345]
[1741596881844,7.9171,126.3,126.26,7.9188]
[1741596882043,0.05265382,126.3,126.27,0.06023141]
[1741596882245,7.9174,126.29,126.27,0.06023141]
[1741596882950,7.96955382,126.3,126.27,0.06023141]
[1741596883542,0.05265382,126.3,126.27,0.06023141]
[1741596883742,7.96955382,126.3,126.27,7.97873141]
[1741596883949,0.05265382,126.3,126.27,0.06023141]
[1741596884551,7.9174,126.29,126.27,0.06023141]
[1741596886339,7.96955382,126.3,126.27,7.97843141]
[1741596886652,0.05265382,126.3,126.27,0.06023141]
[1741596886853,0.05265382,126.3,126.28,7.9176]
[1741596887945,7.96965382,126.3,126.27,7.97853141]
[1741596888152,0.05265382,126.3,126.27,0.06023141]
[1741596888556,7.9176,126.29,126.27,0.06023141]
[1741596889155,7.9178,126.29,126.27,0.06023141]
[1741596889656,7.9179,126.28,126.27,0.06023141]
[1741596889856,0.05265382,126.3,126.27,0.06023141]
[1741596890252,7.96965382,126.3,126.27,7.97873141]
[1741596890455,0.05265382,126.3,126.27,0.06023141]
[1741596890754,7.9173,126.29,126.27,7.97873141]
[1741596890950,0.05265382,126.3,126.27,7.97873141]
[1741596891155,0.05265382,126.3,126.27,0.06023141]
[1741596892353,7.96985382,126.3,126.27,0.06023141]
[1741596893252,0.05265382,126.3,126.27,0.06023141]
[1741596893857,0.05265382,126.3,126.28,20.1950345]
[1741596894753,0.05265382,126.3,126.29,7.9173]
[1741596896959,0.05265382,126.3,126.28,30.8290345]
[1741596897265,0.05265382,126.3,126.28,2.7164]
[1741596897458,7.9173,126.29,126.28,2.7164]
[1741596898052,7.9173,126.29,126.27,0.06023141]
[1741596898758,0.05265382,126.3,126.27,0.06023141]
[1741596899057,0.05265382,126.3,126.28,20.1950345]
[1741596900464,0.05265382,126.3,126.29,7.9173]
[1741596900665,174.08,126.34,126.28,20.1950345]
[1741596900967,7.9148,126.33,126.31,7.9156]
[1741596901464,181.9945,126.34,126.31,7.9156]
[1741596901666,181.9945,126.34,126.32,20.1950345]
[1741596901667,174.08,126.34,126.32,20.1950345]
[1741596901970,174.13080122,126.34,126.32,20.1950345]
[1741596902155,0.05080122,126.34,126.33,7.9148]
[1741596902764,7.9119,126.38,126.35,7.9134]
[1741596903367,174.14,126.4,126.34,20.1950345]
[1741596903662,174.14,126.4,126.36,20.1950345]
[1741596903862,0.05505912,126.38,126.36,20.24697437]
[1741596904959,0.05505912,126.38,126.36,0.05193987]
[1741596905559,0.05505912,126.38,126.37,7.9123]
[1741596906062,0.05505912,126.38,126.36,0.05193987]
[1741596906955,0.05505912,126.38,126.36,7.96463987]
[1741596907163,0.05505912,126.38,126.36,20.24697437]
[1741596907762,7.96695912,126.38,126.36,20.24697437]
[1741596907964,0.05505912,126.38,126.36,0.05193987]
[1741596908361,7.96705912,126.38,126.36,0.05193987]
[1741596908763,0.05505912,126.38,126.36,0.05193987]
[1741596908963,7.9123,126.37,126.36,0.05193987]
[1741596909266,7.9123,126.37,126.36,3.987e-05]
[1741596910869,14.587,126.37,126.36,3.987e-05]
[1741596911070,15.41658709,126.37,126.36,3.987e-05]
[1741596911474,19.37658709,126.37,126.36,3.987e-05]
[1741596913877,14.587,126.37,126.36,3.987e-05]
[1741596914074,15.41525202,126.37,126.36,3.987e-05]
[1741596914274,19.37569127,126.37,126.36,3.987e-05]
[1741596914484,7.9165,126.31,126.27,7.9184]
[1741596914775,20.1950345,126.35,126.27,7.9183]
[1741596914980,20.1950345,126.35,126.26,20.1950345]
[1741596915382,22.9097345,126.37,126.3,7.9165]
[1741596915582,7.96943851,126.32,126.29,0.05535135]
[1741596915881,7.96943851,126.32,126.28,20.1950345]
[1741596915882,22.9097345,126.37,126.28,20.1950345]
[1741596916083,0.05063675,126.32,126.29,0.05737737]
[1741596916282,0.05063675,126.32,126.26,20.1950345]
[1741596916584,0.05063675,126.32,126.29,0.053715]
[1741596916877,2.88253675,126.32,126.29,0.053715]
[1741596917082,0.05063675,126.32,126.29,0.053715]
[1741596918377,7.9167,126.3,126.29,0.053715]
[1741596918977,0.05063675,126.32,126.29,0.053715]
[1741596920788,2.79133675,126.32,126.29,0.053715]
[1741596921780,176.91133675,126.32,126.29,0.053715]
[1741596921985,176.91133675,126.32,126.29,1.5e-05]
[1741596922388,7.9167,126.3,126.29,1.5e-05]
[1741596923087,12.70237867,126.3,126.29,1.5e-05]
[1741596923283,19.52157867,126.3,126.2,2.9615]
[1741596923487,7.9218,126.22,126.2,2.9615]
[1741596923879,7.9223,126.21,126.19,192.0]
[1741596924281,7.9223,126.21,126.13,5.465]
[1741596924282,174.16,126.21,126.13,5.465]
[1741596924589,174.21766371,126.21,126.19,0.05300045]
[1741596924888,174.21764368,126.21,126.19,0.05084262]
[1741596925687,174.21764368,126.21,126.19,20.24587712]
[1741596927081,174.21764368,126.21,126.19,0.05084262]
[1741596927593,7.9229,126.2,126.19,0.05084262]
[1741596929088,7.9246,126.18,126.15,7.926]
[1741596929486,177.1032,126.21,126.13,2.7565]
[1741596929689,20.1950345,126.2,126.12,7.9279]
[1741596930089,7.97618907,126.17,126.15,0.05529999]